bitfinex-derivatives/quotes_SOLF0:USTF0_20250716
["timestamp","ask_amount","ask_price","bid_price","bid_amount"]
[1752625020380,6.0901,164.18,164.13,6.0916]
[1752625021078,6.0901,164.18,164.11,6.0923]
[1752625021379,6.0901,164.18,164.05,12.1896]
[1752625021680,6.0901,164.18,164.11,6.0924]
[1752625022179,6.0905,164.17,164.11,6.0924]
[1752625022380,185.78,164.21,164.11,6.0924]
[1752625022678,6.0906,164.17,164.1,6.0928]
[1752625023180,6.0906,164.17,164.06,48.76]
[1752625023381,6.0906,164.17,164.14,3.26767239]
[1752625023680,189.04767239,164.21,164.14,3.26767239]
[1752625024680,6.0909,164.16,164.14,3.26767239]
[1752625025579,189.04767239,164.21,164.06,48.76]
[1752625025580,3.26767239,164.19,164.12,3.26767239]
[1752625027082,6.0914,164.15,164.12,3.26767239]
[1752625027983,189.04767239,164.21,164.14,3.26767239]
[1752625028676,6.0899,164.19,164.14,3.26767239]
[1752625029380,185.78,164.21,164.08,3.26767239]
[1752625029576,185.78,164.21,164.17,3.26767239]
[1752625030276,3.26767239,164.25,164.17,3.26767239]
[1752625030473,6.0891,164.21,164.17,3.26767239]
[1752625030677,188.72767239,164.25,164.17,3.26767239]
[1752625031085,6.0891,164.21,164.17,3.26767239]
[1752625031587,6.0894,164.2,164.17,3.26767239]
[1752625033086,6.0894,164.2,164.14,6.0914]
[1752625033287,6.09,164.18,164.14,3.26767239]
[1752625035683,3.26767239,164.24,164.16,3.26767239]
[1752625036182,6.0891,164.21,164.16,3.26767239]
[1752625036387,3.26767239,164.24,164.16,3.26767239]
[1752625037989,6.089,164.21,164.16,3.26767239]
[1752625038290,132.78761926,164.23,164.16,3.26767239]
[1752625039284,6.0892,164.21,164.16,3.26767239]
[1752625040089,6.0892,164.21,164.14,6.0913]
[1752625040289,6.0892,164.21,164.17,3.26767239]
[1752625042587,132.78761926,164.23,164.17,3.26767239]
[1752625043192,6.0887,164.22,164.17,3.26767239]
[1752625044386,136.05529165,164.23,164.11,5.06600156]
[1752625044587,3.26767239,164.17,164.08,3.26767239]
[1752625044791,188.52767239,164.17,164.08,3.26767239]
[1752625044992,3.26767239,164.13,164.06,48.76]
[1752625045493,6.0929,164.11,164.06,48.76]
[1752625045991,3.26767239,164.13,164.07,3.26767239]
[1752625046192,6.0925,164.12,164.07,3.26767239]
[1752625046498,185.24,164.16,164.1,3.26767239]
[1752625047289,6.0917,164.14,164.1,3.26767239]
[1752625047795,6.0913,164.15,164.1,3.26767239]
[1752625048391,6.0913,164.15,164.12,3.26767239]
[1752625050097,6.0913,164.15,164.06,48.76]
[1752625050098,185.24,164.16,164.11,3.26767239]
[1752625050493,6.0913,164.15,164.11,3.26767239]
[1752625050694,185.24,164.16,164.11,3.26767239]
[1752625051898,13.41157598,164.19,164.11,3.26767239]
[1752625051899,185.22,164.18,164.11,3.26767239]
[1752625052590,146.19919524,164.23,164.15,3.26767239]
[1752625052792,185.22,164.22,164.15,3.26767239]
[1752625053299,6.0903,164.18,164.15,3.26767239]
[1752625053796,6.0898,164.19,164.15,3.26767239]
[1752625053997,195.36390359,164.22,164.15,3.26767239]
[1752625054199,185.22,164.22,164.15,3.26767239]
[1752625054502,3.26767239,164.21,164.13,3.26767239]
[1752625054698,13.41157598,164.21,164.13,3.26767239]
[1752625055094,3.26767239,164.19,164.11,3.26767239]
[1752625055396,6.0917,164.14,164.11,3.26767239]
[1752625055798,185.18,164.17,164.11,3.26767239]
[1752625056403,185.18,164.17,164.06,48.76]
[1752625056700,6.0917,164.14,164.11,3.26767239]
[1752625057397,6.0913,164.15,164.11,3.26767239]
[1752625057808,185.18,164.17,164.11,3.26767239]
[1752625059908,185.18,164.17,164.12,48.74]
[1752625060104,185.18,164.17,164.13,3.26767239]
[1752625060711,6.0911,164.16,164.13,3.26767239]
[1752625060912,185.18,164.17,164.13,3.26767239]
[1752625061212,6.0908,164.16,164.13,3.26767239]
[1752625061614,185.18,164.17,164.13,3.26767239]
[1752625061815,6.0908,164.16,164.13,3.26767239]
[1752625062016,185.1,164.19,164.15,3.26767239]
[1752625062506,185.1,164.19,164.14,3.26767239]
[1752625064212,185.08,164.2,164.16,3.26767239]
[1752625064714,6.0903,164.18,164.16,3.26767239]
[1752625065415,132.78761926,164.23,164.16,3.26767239]
[1752625065614,185.06,164.22,164.18,3.26767239]
[1752625065814,6.0895,164.2,164.18,3.26767239]
[1752625066118,185.06,164.22,164.18,3.26767239]
[1752625066514,6.0895,164.2,164.14,6.0914]
[1752625066714,6.0895,164.2,164.18,3.26767239]
[1752625068307,6.0896,164.19,164.18,3.26767239]
[1752625068505,317.82761926,164.23,164.18,3.26767239]
[1752625068815,6.0894,164.2,164.18,3.26767239]
[1752625069014,317.82761926,164.23,164.14,6.0914]
[1752625069215,317.82761926,164.23,164.18,3.26767239]
[1752625069918,6.0896,164.19,164.18,3.26767239]
[1752625071521,184.98,164.22,164.15,3.26767239]
[1752625072116,6.0907,164.17,164.15,3.26767239]
[1752625074419,142.93152285,164.23,164.15,3.26767239]
[1752625074721,184.94,164.22,164.18,3.26767239]
[1752625074922,184.94,164.22,164.12,48.74]
[1752625075118,184.94,164.22,164.16,3.26767239]
[1752625075422,184.94,164.22,164.15,3.26767239]
[1752625075622,6.0908,164.16,164.15,3.26767239]
[1752625075818,184.94,164.22,164.15,3.26767239]
[1752625076019,6.0905,164.17,164.15,3.26767239]
[1752625076219,184.94,164.22,164.15,3.26767239]
[1752625076420,184.94,164.22,164.17,3.26767239]
[1752625077118,184.94,164.22,164.19,3.26767239]
[1752625077623,184.94,164.22,164.21,3.26767239]
[1752625077825,10.14390359,164.29,164.21,3.26767239]
[1752625078125,184.9,164.26,164.21,3.26767239]
[1752625078520,10.14390359,164.29,164.23,3.26767239]
[1752625078826,184.88,164.29,164.25,3.26767239]
[1752625079318,539.99157598,164.32,164.25,3.26767239]
[1752625079524,184.88,164.29,164.25,3.26767239]
[1752625080219,184.88,164.29,164.22,3.26767239]
[1752625080728,6.0881,164.24,164.22,3.26767239]
[1752625081228,184.88,164.29,164.22,3.26767239]
[1752625081528,6.0875,164.25,164.22,3.26767239]
[1752625082532,184.88,164.29,164.22,3.26767239]
[1752625083130,6.088,164.24,164.22,3.26767239]
[1752625083832,184.88,164.29,164.22,3.26767239]
[1752625083833,6.0876,164.25,164.22,3.26767239]
[1752625084131,184.88,164.29,164.22,3.26767239]
[1752625084532,536.72390359,164.32,164.24,3.26767239]
[1752625084533,3.26767239,164.3,164.24,3.26767239]
[1752625084731,184.8,164.28,164.24,3.26767239]
[1752625084933,6.0871,164.26,164.24,3.26767239]
[1752625085435,6.0868,164.27,164.24,3.26767239]
[1752625085633,184.8,164.28,164.26,3.26767239]
[1752625086136,6.087,164.27,164.26,3.26767239]
[1752625086539,184.8,164.28,164.26,3.26767239]
[1752625086738,190.8864,164.28,164.26,3.26767239]
[1752625086937,184.76,164.31,164.26,3.26767239]
[1752625087139,6.0861,164.29,164.26,3.26767239]
[1752625087335,526.58,164.32,164.28,3.26767239]
[1752625087636,711.34,164.32,164.28,3.26767239]
[1752625089037,6.0859,164.29,164.28,3.26767239]
[1752625089934,6.0859,164.29,164.27,3.26767239]
[1752625090432,711.34,164.32,164.27,3.26767239]
[1752625090737,6.0863,164.28,164.27,3.26767239]
[1752625090944,711.34,164.32,164.17,4.68781662]
[1752625091134,3.26767239,164.29,164.21,3.26767239]
[1752625091330,184.7,164.28,164.21,3.26767239]
[1752625091529,6.0877,164.25,164.21,3.26767239]
[1752625091730,3.26767239,164.29,164.16,3.26767239]
[1752625091935,184.7,164.28,164.22,3.26767239]
[1752625092538,0.04275036,164.27,164.22,3.26767239]
[1752625092739,0.04275036,164.27,164.23,0.04127007]
[1752625092937,6.0877,164.25,164.23,0.04127007]
[1752625093134,0.04275036,164.27,164.23,0.04127007]
[1752625093638,0.04275036,164.27,164.24,3.26767239]
[1752625093835,0.04275036,164.27,164.26,3.26767239]
[1752625094036,6.12945036,164.27,164.23,0.04127007]
[1752625094241,0.04275036,164.27,164.25,3.26767239]
[1752625094542,0.04275036,164.27,164.24,3.26767239]
[1752625095142,6.12965036,164.27,164.26,3.26767239]
[1752625095639,0.04275036,164.27,164.26,3.26767239]
[1752625095943,6.12945036,164.27,164.26,3.26767239]
[1752625097938,0.04275036,164.27,164.23,0.04127007]
[1752625098140,0.04275036,164.27,164.24,3.26767239]
[1752625099146,0.04275036,164.27,164.24,46.31767239]
[1752625099443,6.0874,164.25,164.24,46.31767239]
[1752625100144,6.0872,164.26,164.24,46.31767239]
[1752625100345,0.04275036,164.27,164.24,46.31767239]
[1752625100943,3.26767239,164.36,164.26,3.26767239]
[1752625101244,6.0855,164.31,164.29,3.26767239]
[1752625101447,184.62,164.35,164.29,3.26767239]
[1752625102348,184.62,164.35,164.3,0.03975169]
[1752625103047,526.32,164.37,164.33,3.26767239]
[1752625103240,219.64295509,164.42,164.3,0.03975169]
[1752625103241,207.48065509,164.42,164.3,0.03975169]
[1752625103440,393.44065509,164.42,164.32,3.26767239]
[1752625103638,6.0836,164.36,164.35,3.26767239]
[1752625104344,6.0831,164.37,164.35,3.26767239]
[1752625104644,393.44065509,164.42,164.35,3.26767239]
[1752625104947,6.083,164.37,164.35,3.26767239]
[1752625105146,393.44065509,164.42,164.35,3.26767239]
[1752625105351,185.92,164.41,164.35,3.26767239]
[1752625105549,6.0832,164.37,164.35,3.26767239]
[1752625106256,6.0827,164.38,164.35,3.26767239]
[1752625106448,207.48065509,164.42,164.37,3.26767239]
[1752625106651,207.48065509,164.42,164.39,3.26767239]
[1752625107148,207.48065509,164.42,164.39,3.30742597]
[1752625107358,6.0819,164.4,164.39,3.30742597]
[1752625109058,207.48065509,164.42,164.39,3.30742597]
[1752625109254,207.48065509,164.42,164.41,3.26767239]
[1752625109557,213.56175509,164.42,164.41,3.26767239]
[1752625109954,526.3,164.48,164.41,3.26767239]
[1752625110151,185.44,164.47,164.43,3.26767239]
[1752625110557,6.0804,164.44,164.43,3.31020678]
[1752625110758,6.0804,164.44,164.43,0.04253439]
[1752625111363,6.0816,164.41,164.32,3.26767239]
[1752625111554,6.0816,164.41,164.4,3.26767239]
[1752625111952,185.28,164.42,164.37,3.26767239]
[1752625112161,185.28,164.41,164.37,3.26767239]
[1752625112958,185.28,164.41,164.36,5.43116869]
[1752625113157,6.0825,164.39,164.36,5.43116869]
[1752625113357,185.12,164.42,164.36,5.43116869]
[1752625113553,185.24,164.44,164.38,5.43116869]
[1752625113763,6.0813,164.42,164.38,5.43116869]
[1752625113965,185.24,164.44,164.4,5.43116869]
[1752625114363,6.0812,164.42,164.4,5.43116869]
[1752625116476,6.0809,164.43,164.4,5.43116869]
[1752625117865,36.4606,164.54,164.4,5.43116869]
[1752625117866,12.1498,164.59,164.42,5.42541359]
[1752625118073,5.42281378,164.59,164.49,5.42281378]
[1752625118266,332.58606318,164.63,164.51,5.42281378]
[1752625118267,1.05832979,164.62,164.51,5.42281378]
[1752625118473,185.08,164.61,164.51,5.42281378]
[1752625118674,5.42281378,164.6,164.51,5.42281378]
[1752625118871,6.0771,164.53,164.51,5.42281378]
[1752625119173,185.06,164.59,164.51,5.42281378]
[1752625119376,6.0769,164.54,164.51,5.42281378]
[1752625119575,185.06,164.59,164.4,5.42281378]
[1752625119778,5.42281378,164.56,164.46,5.42281378]
[1752625119969,6.0779,164.51,164.46,5.42281378]
[1752625120470,6.0782,164.5,164.46,5.42281378]
[1752625120671,6.0782,164.5,164.48,5.42281378]
[1752625120870,184.92,164.53,164.48,5.42281378]
[1752625121066,184.84,164.53,164.48,5.42281378]
[1752625121568,6.078,164.51,164.48,5.42281378]
[1752625121771,24.414,164.62,164.47,48.64]
[1752625121969,6.0776,164.52,164.5,5.42281378]
[1752625122869,6.0778,164.51,164.5,5.42281378]
[1752625125469,6.0775,164.52,164.5,5.42281378]
[1752625127974,6.0771,164.53,164.5,5.42281378]
[1752625128176,12.1462,164.64,164.52,5.42281378]
[1752625128378,184.44,164.62,164.56,5.42281378]
[1752625129481,6.0756,164.57,164.56,5.42281378]
[1752625132186,6.0763,164.55,164.54,5.42281378]
[1752625134087,6.0763,164.56,164.54,5.42281378]
[1752625134990,6.0757,164.57,164.54,5.42281378]
[1752625135185,184.4,164.6,164.56,5.42281378]
[1752625135488,6.0756,164.57,164.56,5.42281378]
[1752625136084,184.4,164.6,164.56,5.42281378]
[1752625136085,6.0754,164.58,164.56,5.42281378]
[1752625136894,6.0756,164.57,164.56,5.42281378]
[1752625137391,6.0752,164.58,164.56,5.42281378]
[1752625137594,6.0752,164.58,164.57,5.42281378]
[1752625137894,6.0751,164.59,164.57,5.42281378]
[1752625138096,516.94606318,164.63,164.57,5.42281378]
[1752625138491,516.94606318,164.63,164.55,5.42281378]
[1752625138688,516.94606318,164.63,164.54,5.42281378]
[1752625138898,5.42281378,164.61,164.43,4.63221159]
[1752625139092,536.32379786,164.63,164.5,5.42281378]
[1752625139093,6.0777,164.52,164.5,5.42281378]
[1752625139291,184.34,164.55,164.5,5.42281378]
[1752625139486,6.0771,164.53,164.52,5.42281378]
[1752625139796,184.34,164.55,164.52,5.42281378]
[1752625140094,12.1476,164.62,164.54,5.42281378]
[1752625140299,184.34,164.61,164.54,5.42281378]
[1752625140593,184.34,164.61,164.56,5.42281378]
[1752625140794,6.0756,164.57,164.56,5.42281378]
[1752625142492,6.0767,164.54,164.5,5.42281378]
[1752625142792,184.34,164.56,164.51,5.42281378]
[1752625142993,184.34,164.56,164.42,91.80037066]
[1752625142994,184.34,164.56,164.46,6.0794]
[1752625143391,184.34,164.56,164.51,5.42281378]
[1752625144296,6.0769,164.54,164.51,5.42281378]
[1752625144496,184.34,164.56,164.51,5.42281378]
[1752625144699,6.0769,164.54,164.51,5.42281378]
[1752625144892,184.34,164.56,164.51,5.42281378]
[1752625145397,6.0771,164.53,164.51,5.42281378]
[1752625147495,6.0768,164.54,164.51,5.42281378]
[1752625147998,184.34,164.56,164.51,5.42281378]
[1752625148799,6.0771,164.53,164.51,5.42281378]
[1752625149292,184.34,164.56,164.52,5.42281378]
[1752625149490,0.04000229,164.54,164.52,5.42281378]
[1752625149701,6.11690229,164.54,164.52,5.42281378]
[1752625150803,6.0771,164.53,164.52,5.42281378]
[1752625151101,6.0771,164.53,164.52,3.2525884]
[1752625153904,6.11690229,164.54,164.52,3.2525884]
[1752625154296,0.04000229,164.54,164.52,3.2525884]
[1752625154496,184.28,164.59,164.52,3.2525884]
[1752625154705,184.28,164.59,164.57,3.2525884]
[1752625155309,6.0752,164.58,164.57,3.2525884]
[1752625159316,6.0756,164.57,164.56,0.04689405]
[1752625159515,6.0756,164.57,164.56,3.29948245]
[1752625160919,6.0756,164.57,164.56,0.04689405]
[1752625162117,6.0756,164.57,164.56,9.405e-05]
[1752625162318,190.2956,164.57,164.56,9.405e-05]
[1752625165220,190.2756,164.57,164.56,9.405e-05]
[1752625165617,6.0756,164.57,164.56,9.405e-05]
[1752625165925,6.11740099,164.58,164.56,9.405e-05]
[1752625166222,0.04180099,164.58,164.57,3.2525884]
[1752625166516,135.93553184,164.61,164.57,3.2525884]
[1752625166723,135.93553184,164.61,164.6,3.2525884]
[1752625167111,184.2,164.65,164.6,3.2525884]
[1752625167313,6.0734,164.63,164.62,3.2525884]
[1752625168122,6.0732,164.64,164.62,3.2525884]
[1752625168318,184.2,164.65,164.62,3.2525884]
[1752625168726,6.0734,164.63,164.62,3.2525884]
[1752625172626,6.0737,164.62,164.61,0.0404016]
[1752625174233,6.0752,164.59,164.57,3.2525884]
[1752625174432,184.1,164.61,164.57,3.2525884]
[1752625174631,184.08,164.61,164.57,3.2525884]
[1752625174831,6.0759,164.57,164.55,3.2525884]
[1752625176331,184.08,164.61,164.55,3.2525884]
[1752625176532,184.08,164.6,164.57,3.2525884]
[1752625177432,6.0748,164.59,164.57,3.2525884]
[1752625179130,190.1546,164.6,164.57,3.2525884]
[1752625179635,6.0752,164.59,164.57,3.2525884]
[1752625180034,190.1546,164.6,164.57,3.2525884]
[1752625180227,184.08,164.6,164.57,3.2525884]
[1752625180432,184.08,164.6,164.58,3.2525884]
[1752625180633,6.0742,164.61,164.58,3.2525884]
[1752625181635,6.0742,164.61,164.54,6.0766]
[1752625181832,184.04,164.63,164.53,6.077]
[1752625182032,184.04,164.63,164.57,3.2525884]
[1752625182236,184.04,164.63,164.5,525.38]
[1752625182530,184.04,164.63,164.57,3.2525884]
[1752625183427,6.0751,164.59,164.57,3.2525884]
[1752625184336,184.04,164.63,164.57,3.2525884]
[1752625184337,6.0746,164.6,164.57,3.2525884]
[1752625186940,6.0749,164.59,164.57,3.2525884]
[1752625187240,3.2525884,164.62,164.54,3.2525884]
[1752625187937,3.2525884,164.6,164.52,3.2525884]
[1752625188238,3.2525884,164.58,164.56,0.04157655]
[1752625188438,183.98,164.57,164.56,0.04157655]
[1752625188633,183.98,164.57,164.5,3.2525884]
[1752625188836,6.0759,164.56,164.55,0.04049458]
[1752625195640,9.3284884,164.56,164.55,9.458e-05]
[1752625196447,12.5851768,164.56,164.4,3.2525884]
[1752625196647,3.2525884,164.52,164.44,3.2525884]
[1752625196942,183.92,164.51,164.44,3.2525884]
[1752625197155,6.0795,164.47,164.44,3.2525884]
[1752625197746,6.0797,164.46,164.44,3.2525884]
[1752625197947,183.92,164.51,164.44,3.2525884]
[1752625199050,6.0793,164.47,164.44,3.2525884]
[1752625199948,6.079,164.48,164.44,3.2525884]
[1752625200448,6.0789,164.48,164.44,3.2525884]
[1752625200648,183.92,164.51,164.44,3.2525884]
[1752625201046,183.92,164.51,164.43,48.65]
[1752625201047,6.0803,164.45,164.43,48.65]
[1752625202052,187.1725884,164.51,164.44,3.2525884]
[1752625202251,3.2525884,164.49,164.43,48.65]
[1752625203150,3.2525884,164.48,164.43,48.65]
[1752625203754,6.0804,164.44,164.43,48.65]
[1752625204952,9.3329884,164.44,164.43,19.1322]
[1752625205147,6.0823,164.39,164.37,3.2525884]
[1752625205948,3.2525884,164.44,164.37,3.2525884]
[1752625206555,6.0821,164.4,164.37,3.2525884]
[1752625206850,3.2525884,164.44,164.37,3.2525884]
[1752625207057,6.0822,164.39,164.37,3.2525884]
[1752625207447,6.082,164.4,164.37,3.2525884]
[1752625207754,3.2525884,164.44,164.28,183.92]
[1752625208054,6.0825,164.39,164.35,3.2525884]
[1752625209856,6.0827,164.38,164.35,3.2525884]
[1752625211457,6.0827,164.38,164.37,3.2525884]
[1752625211757,6.0823,164.39,164.37,3.2525884]
[1752625213158,6.0826,164.38,164.37,3.2525884]
[1752625215553,6.0832,164.37,164.32,9.3372884]
[1752625215756,6.0832,164.37,164.36,3.2525884]
[1752625219057,6.0827,164.38,164.36,3.2525884]
[1752625219460,6.083,164.37,164.36,3.2525884]
[1752625224168,3.2525884,164.49,164.36,3.2525884]
[1752625224464,12.1566,164.5,164.44,3.2525884]
[1752625224968,6.08,164.45,164.44,3.2525884]
[1752625225466,6.0813,164.42,164.33,4.63016987]
[1752625225766,3.2525884,164.49,164.34,4.63016987]
[1752625226060,12.1566,164.5,164.35,4.63016987]
[1752625226267,183.86,164.53,164.32,3.2525884]
[1752625226464,12.1536,164.54,164.33,4.63228247]
[1752625226667,6.0795,164.47,164.46,3.2525884]
[1752625227768,15.4061884,164.54,164.46,3.2525884]
[1752625227968,3.2525884,164.54,164.46,3.2525884]
[1752625228263,709.2,164.56,164.48,3.2525884]
[1752625228468,709.2,164.56,164.5,3.2525884]
[1752625230069,6.0777,164.52,164.5,3.2525884]
[1752625230371,3.2525884,164.55,164.47,3.2525884]
[1752625230571,3.2525884,164.53,164.45,3.2525884]
[1752625231769,6.0786,164.49,164.45,3.2525884]
[1752625232264,709.2,164.56,164.47,3.2525884]
[1752625232265,3.2525884,164.55,164.47,3.2525884]
[1752625232470,3.2525884,164.55,164.42,6.081]
[1752625232770,3.2525884,164.55,164.48,3.2525884]
[1752625234067,525.34,164.56,164.48,3.2525884]
[1752625235571,6.078,164.51,164.48,3.2525884]
[1752625236872,6.0782,164.5,164.48,3.2525884]
[1752625237073,525.34,164.56,164.48,3.2525884]
[1752625237367,6.0779,164.51,164.48,3.2525884]
[1752625238174,6.0782,164.5,164.48,3.2525884]
[1752625238472,525.34,164.56,164.48,3.2525884]
[1752625239072,6.0779,164.51,164.48,3.2525884]
[1752625239972,525.34,164.56,164.5,3.2525884]
[1752625241176,6.0776,164.52,164.5,3.2525884]
[1752625241775,525.34,164.56,164.5,3.2525884]
[1752625242575,525.34,164.56,164.52,3.2525884]
[1752625242772,6.0764,164.55,164.52,3.2525884]
[1752625244076,6.0761,164.56,164.54,3.2525884]
[1752625244384,183.74,164.57,164.54,3.2525884]
[1752625244675,189.8158,164.57,164.54,3.2525884]
[1752625244880,183.74,164.57,164.55,3.2525884]
[1752625245683,6.0759,164.56,164.55,3.2525884]
[1752625246980,183.56,164.61,164.55,3.2525884]
[1752625247380,6.0759,164.56,164.55,3.2525884]
[1752625247877,183.56,164.61,164.55,3.2525884]
[1752625248984,183.56,164.61,164.53,3.2525884]
[1752625249583,6.0762,164.56,164.53,3.2525884]
[1752625249784,3.2525884,164.6,164.53,3.2525884]
[1752625250285,6.0763,164.55,164.53,3.2525884]
[1752625250486,3.2525884,164.6,164.53,3.2525884]
[1752625250987,6.0762,164.56,164.53,3.2525884]
[1752625251488,6.0757,164.57,164.53,3.2525884]
[1752625252889,6.076,164.56,164.53,3.2525884]
[1752625253490,6.0757,164.57,164.53,3.2525884]
[1752625254293,186.8125884,164.61,164.52,3.2525884]
[1752625254684,3.2525884,164.59,164.49,23.08]
[1752625254888,3.2525884,164.57,164.49,26.3325884]
[1752625256793,3.2525884,164.57,164.49,3.2525884]
[1752625257393,6.0773,164.53,164.49,3.2525884]
[1752625258499,6.0775,164.52,164.49,3.2525884]
[1752625259499,6.0771,164.53,164.49,3.2525884]
[1752625259799,3.2525884,164.57,164.49,3.2525884]
[1752625260899,6.0774,164.53,164.49,3.2525884]
[1752625261298,3.2525884,164.57,164.49,3.2525884]
[1752625262595,1.05791154,164.6,164.47,3.2525884]
[1752625262596,3.2525884,164.55,164.47,3.2525884]
[1752625262805,3.2525884,164.53,164.45,26.3025884]
[1752625263103,186.6325884,164.53,164.45,26.3025884]
[1752625263291,183.38,164.53,164.47,3.2525884]
[1752625263898,183.38,164.53,164.49,3.2525884]
[1752625264197,183.38,164.53,164.48,3.2525884]
[1752625264396,6.078,164.51,164.48,3.2525884]
[1752625264698,183.38,164.53,164.48,3.2525884]
[1752625264899,189.4574,164.53,164.48,3.2525884]
[1752625265490,6.0775,164.52,164.45,23.05]
[1752625265695,6.0775,164.52,164.48,3.2525884]
[1752625265891,183.38,164.53,164.48,3.2525884]
[1752625266099,189.4573,164.53,164.48,3.2525884]
[1752625266294,6.0773,164.53,164.48,3.2525884]
[1752625266694,6.0773,164.53,164.5,3.2525884]
[1752625266896,6.0769,164.54,164.5,3.2525884]
[1752625268102,183.34,164.56,164.5,3.2525884]
[1752625268797,6.0773,164.53,164.5,3.2525884]
[1752625270097,6.0768,164.54,164.5,3.2525884]
[1752625271203,183.34,164.56,164.5,3.2525884]
[1752625271499,183.34,164.56,164.52,3.2525884]
[1752625271707,3.2525884,164.62,164.54,3.2525884]
[1752625271903,186.5325884,164.62,164.54,3.2525884]
[1752625272305,6.0754,164.58,164.54,3.2525884]
[1752625272602,186.5325884,164.62,164.56,3.2525884]
[1752625272603,183.28,164.62,164.56,3.2525884]
[1752625274104,6.0752,164.59,164.56,3.2525884]
[1752625274496,6.0747,164.6,164.56,3.2525884]
[1752625274902,183.28,164.62,164.56,3.2525884]
[1752625275096,186.5325884,164.62,164.56,3.2525884]
[1752625275402,186.5325884,164.62,164.54,3.2525884]
[1752625275803,6.0756,164.57,164.54,3.2525884]
[1752625276003,186.5325884,164.62,164.54,3.2525884]
[1752625276298,183.28,164.62,164.51,3.2525884]
[1752625276504,3.2525884,164.58,164.51,3.2525884]
[1752625276697,184.33779899,164.62,164.51,3.2525884]
[1752625276905,6.0752,164.58,164.53,3.2525884]
[1752625277104,186.5325884,164.62,164.53,3.2525884]
[1752625277505,6.0755,164.58,164.53,3.2525884]
[1752625277808,183.28,164.62,164.55,3.2525884]
[1752625278107,6.0751,164.59,164.55,3.2525884]
[1752625278306,183.28,164.62,164.55,3.2525884]
[1752625279108,6.0753,164.58,164.55,3.2525884]
[1752625281113,6.075,164.59,164.55,3.2525884]
[1752625281412,6.075,164.59,164.48,3.2525884]
[1752625281413,183.28,164.62,164.57,3.2525884]
[1752625281813,183.28,164.62,164.59,3.2525884]
[1752625282715,6.0742,164.61,164.59,3.2525884]
[1752625286816,183.28,164.62,164.59,3.2525884]
[1752625287017,13.4352226,164.7,164.61,3.2525884]
[1752625287313,183.06,164.69,164.61,3.2525884]
[1752625287615,3.2525884,164.66,164.59,3.2525884]
[1752625287816,183.04,164.65,164.59,3.2525884]
[1752625288017,183.04,164.64,164.59,3.2525884]
[1752625288411,183.04,164.64,164.57,3.2525884]
[1752625288917,6.0743,164.61,164.57,3.2525884]
[1752625290012,183.04,164.64,164.57,3.2525884]
[1752625290717,6.074,164.62,164.57,3.2525884]
[1752625292722,6.074,164.62,164.59,3.2525884]
[1752625292916,6.0741,164.61,164.59,3.2525884]
[1752625294319,12.1422,164.7,164.59,3.2525884]
[1752625294520,186.1925884,164.69,164.61,3.2525884]
[1752625294913,6.0733,164.64,164.61,3.2525884]
[1752625295115,186.1925884,164.69,164.56,3.2525884]
[1752625295317,3.2525884,164.65,164.58,3.2525884]
[1752625295523,6.0743,164.61,164.58,3.2525884]
[1752625295919,6.0739,164.62,164.58,3.2525884]
[1752625296316,182.92,164.64,164.58,3.2525884]
[1752625296622,6.0744,164.61,164.58,3.2525884]
[1752625296819,182.92,164.64,164.58,3.2525884]
[1752625297823,6.0743,164.61,164.58,3.2525884]
[1752625299120,6.0743,164.61,164.58,26.1825884]
[1752625299926,186.1725884,164.64,164.58,22.93]
[1752625300124,182.92,164.64,164.58,26.1825884]
[1752625301126,6.0738,164.62,164.58,26.1825884]
[1752625303428,6.0742,164.61,164.58,26.1825884]
[1752625303622,182.92,164.64,164.58,26.1825884]
[1752625303828,6.0748,164.59,164.58,22.93]
[1752625308627,182.76,164.64,164.58,26.1825884]
[1752625309428,182.76,164.64,164.58,22.93]
[1752625309724,182.76,164.64,164.59,3.2525884]
[1752625310232,6.0745,164.6,164.59,3.2525884]
[1752625310529,182.76,164.64,164.58,22.93]
[1752625310731,182.76,164.64,164.58,26.1825884]
[1752625311127,186.0125884,164.64,164.58,22.93]
[1752625311324,142.57316397,164.67,164.58,22.93]
[1752625311526,6.0748,164.59,164.58,22.93]